fUSD/lending_fUSD_20250906
["ID","MTS","AMOUNT","RATE_DAILY","PERIOD"]
[383850466,1757142659966,-400.0,0.00054794,120]
[383850467,1757142659975,-400.0,0.00054794,120]
[383850468,1757142659985,-400.0,0.00054794,120]
[383850469,1757142659995,-400.0,0.00054794,120]
[383850470,1757142660004,-405.42518153,0.00054794,120]
[383850471,1757142660014,-400.0,0.00054794,120]
[383850472,1757142660023,-616.97,0.00054794,120]
[383850473,1757142660033,-400.0,0.00054794,120]
[383850474,1757142660043,-400.0,0.00054794,120]
[383850475,1757142660052,-400.0,0.00054794,120]
[383850476,1757142660062,-400.0,0.00054794,120]
[383850477,1757142660073,-400.0,0.00054794,120]
[383850478,1757142660083,-400.0,0.00054794,120]
[383850479,1757142660095,-402.21788409,0.00054794,120]
[383850480,1757142660106,-403.7939236,0.00054794,120]
[383850481,1757142660117,-400.0,0.00054794,120]
[383850482,1757142660127,-400.0,0.00054794,120]
[383850483,1757142660137,-511.67417651,0.00054794,120]
[383850484,1757142660147,-291.03288635,0.00054794,120]
[383850485,1757142660156,-5889.47,0.00054794,120]
[383850486,1757142660166,-400.0,0.00054794,120]
[383850487,1757142660176,-405.80465087,0.00054794,120]
[383850488,1757142660186,-400.0,0.00054794,120]
[383850489,1757142660196,-160.0,0.00054794,120]
[383850490,1757142660206,-403.58268641,0.00054794,120]
[383850491,1757142660215,-160.0,0.00054794,120]
[383850492,1757142660225,-160.0,0.00054794,120]
[383850493,1757142660235,-160.0,0.00054794,120]
[383850494,1757142660246,-160.0,0.00054794,120]
[383850495,1757142660255,-400.0,0.00054794,120]
[383850496,1757142660264,-400.0,0.00054794,120]
[383850497,1757142660274,-160.0,0.00054794,120]
[383850498,1757142660283,-406.30728057,0.00054794,120]
[383850499,1757142660292,-160.0,0.00054794,120]
[383850500,1757142660302,-404.61625061,0.00054794,120]
[383850501,1757142660311,-160.0,0.00054794,120]
[383850502,1757142660321,-160.0,0.00054794,120]
[383850503,1757142660330,-160.0,0.00054794,120]
[383850504,1757142660339,-400.0,0.00054794,120]
[383850505,1757142660350,-160.0,0.00054794,120]
[383850506,1757142660360,-160.0,0.00054794,120]
[383850507,1757142660370,-400.0,0.00054794,120]
[383850508,1757142660379,-160.0,0.00054794,120]
[383850509,1757142660388,-400.0,0.00054794,120]
[383850510,1757142660398,-160.0,0.00054794,120]
[383850511,1757142660408,-400.0,0.00054794,120]
[383850512,1757142660418,-160.0,0.00054794,120]
[383850513,1757142660428,-160.0,0.00054794,120]
[383850514,1757142660438,-160.0,0.00054794,120]
[383850515,1757142660448,-160.0,0.00054794,120]
[383850516,1757142660457,-402.38680302,0.00054794,120]
[383850517,1757142660467,-400.0,0.00054794,120]
[383850518,1757142660479,-160.0,0.00054794,120]
[383850519,1757142660488,-505.36,0.00054794,120]
[383850520,1757142660498,-160.0,0.00054794,120]
[383850521,1757142660507,-400.0,0.00054794,120]
[383850522,1757142660516,-160.0,0.00054794,120]
[383850523,1757142660525,-160.0,0.00054794,120]
[383850524,1757142660535,-400.0,0.00054794,120]
[383850525,1757142660544,-400.0,0.00054794,120]
[383850526,1757142660554,-160.0,0.00054794,120]
[383850527,1757142660565,-160.0,0.00054794,120]
[383850528,1757142660575,-160.0,0.00054794,120]
[383850529,1757142660584,-402.42449518,0.00054794,120]
[383850530,1757142660594,-160.0,0.00054794,120]
[383850531,1757142660604,-400.0,0.00054794,120]
[383850532,1757142660614,-400.0,0.00054794,120]
[383850533,1757142660623,-160.0,0.00054794,120]
[383850534,1757142660633,-470.65,0.00054794,120]
[383850535,1757142660643,-400.0,0.00054794,120]
[383850536,1757142660653,-400.0,0.00054794,120]
[383850537,1757142660663,-160.0,0.00054794,120]
[383850538,1757142660673,-400.0,0.00054794,120]
[383850539,1757142660682,-160.0,0.00054794,120]
[383850540,1757142660692,-400.0,0.00054794,120]
[383850541,1757142660701,-160.0,0.00054794,120]
[383850542,1757142660710,-400.0,0.00054794,120]
[383850543,1757142660720,-160.0,0.00054794,120]
[383850544,1757142660729,-403.64555271,0.00054794,120]
[383850545,1757142660738,-160.0,0.00054794,120]
[383850546,1757142660748,-160.0,0.00054794,120]
[383850547,1757142660758,-160.0,0.00054794,120]
[383850548,1757142660767,-160.0,0.00054794,120]
[383850549,1757142660777,-500.0,0.00054794,120]
[383850550,1757142660787,-160.0,0.00054794,120]
[383850551,1757142660797,-500.0,0.00054794,120]
[383850552,1757142660807,-500.0,0.00054794,120]
[383850553,1757142660817,-160.0,0.00054794,120]
[383850554,1757142660827,-500.0,0.00054794,120]
[383850555,1757142660837,-500.0,0.00054794,120]
[383850556,1757142660847,-500.0,0.00054794,120]
[383850557,1757142660858,-160.0,0.00054794,120]
[383850558,1757142660869,-500.0,0.00054794,120]
[383850559,1757142660879,-500.0,0.00054794,120]
[383850560,1757142660891,-160.0,0.00054794,120]
[383850561,1757142660903,-530.57308719,0.00054794,120]
[383850562,1757142660913,-500.0,0.00054794,120]
[383850563,1757142660923,-160.0,0.00054794,120]
[383850564,1757142660935,-500.0,0.00054794,120]
[383850565,1757142660947,-160.0,0.00054794,120]
[383850566,1757142660958,-500.0,0.00054794,120]
[383850567,1757142660968,-402.79903524,0.00054794,120]
[383850568,1757142660978,-160.0,0.00054794,120]
[383850569,1757142660989,-500.0,0.00054794,120]
[383850570,1757142660999,-400.0,0.00054794,120]
[383850571,1757142661008,-645.05341248,0.00054794,120]
[383850572,1757142661019,-160.0,0.00054794,120]
[383850573,1757142661028,-404.68817169,0.00054794,120]
[383850574,1757142661037,-160.0,0.00054794,120]
[383850575,1757142661047,-684.52,0.00054794,14]
[383850576,1757142661058,-160.0,0.00054794,120]
[383850577,1757142661068,-400.0,0.00054794,120]
[383850578,1757142661078,-400.0,0.00054794,120]
[383850579,1757142661088,-160.0,0.00054794,120]
[383850580,1757142661099,-400.0,0.00054794,120]
[383850581,1757142661108,-400.0,0.00054794,120]
[383850582,1757142661120,-400.0,0.00054794,120]
[383850583,1757142661130,-160.0,0.00054794,120]
[383850584,1757142661141,-160.0,0.00054794,120]
[383850585,1757142661150,-160.0,0.00054794,120]
[383850586,1757142661160,-400.0,0.00054794,120]
[383850587,1757142661170,-160.0,0.00054794,120]
[383850588,1757142661180,-400.0,0.00054794,120]
[383850589,1757142661190,-160.0,0.00054794,120]
[383850590,1757142661200,-160.0,0.00054794,120]
[383850591,1757142661210,-407.40765035,0.00054794,120]
[383850592,1757142661220,-160.0,0.00054794,120]
[383850593,1757142661232,-160.0,0.00054794,120]
[383850594,1757142661244,-160.0,0.00054794,120]
[383850595,1757142661254,-400.0,0.00054794,120]
[383850596,1757142661264,-160.0,0.00054794,120]
[383850597,1757142661274,-400.0,0.00054794,120]
[383850598,1757142661283,-160.0,0.00054794,120]
[383850599,1757142661293,-160.0,0.00054794,120]
[383850600,1757142661305,-160.0,0.00054794,120]
[383850601,1757142661316,-403.74539985,0.00054794,120]
[383850602,1757142661329,-401.81626062,0.00054794,120]
[383850603,1757142661340,-160.0,0.00054794,120]
[383850604,1757142661350,-160.0,0.00054794,120]
[383850605,1757142661360,-400.0,0.00054794,120]
[383850606,1757142661369,-160.0,0.00054794,120]
[383850607,1757142661379,-510.01259809,0.00054794,120]
[383850608,1757142661389,-160.0,0.00054794,120]
[383850609,1757142661398,-160.0,0.00054794,120]
[383850610,1757142661407,-400.0,0.00054794,120]
[383850611,1757142661416,-160.0,0.00054794,120]
[383850612,1757142661425,-400.0,0.00054794,120]
[383850613,1757142661434,-160.0,0.00054794,120]
[383850614,1757142661443,-407.78064146,0.00054794,120]
[383850615,1757142661453,-160.0,0.00054794,120]
[383850616,1757142661462,-160.0,0.00054794,120]
[383850617,1757142661472,-401.95306746,0.00054794,120]
[383850618,1757142661484,-160.0,0.00054794,120]
[383850619,1757142661493,-160.0,0.00054794,120]
[383850620,1757142661502,-403.87505756,0.00054794,120]
[383850621,1757142661511,-400.0,0.00054794,120]
[383850622,1757142661521,-160.0,0.00054794,120]
[383850623,1757142661693,-160.0,0.00054794,120]
[383850624,1757142661704,-400.0,0.00054794,120]
[383850625,1757142661715,-160.0,0.00054794,120]
[383850626,1757142661725,-160.0,0.00054794,120]
[383850627,1757142661734,-160.0,0.00054794,120]
[383850628,1757142661744,-400.0,0.00054794,120]
[383850629,1757142661754,-160.0,0.00054794,120]
[383850630,1757142661764,-405.46102042,0.00054794,120]
[383850631,1757142661773,-400.0,0.00054794,120]
[383850632,1757142661782,-160.0,0.00054794,120]
[383850633,1757142661791,-400.0,0.00054794,120]
[383850634,1757142661803,-160.0,0.00054794,120]
[383850635,1757142661813,-400.0,0.00054794,120]
[383850636,1757142661823,-294.053848,0.00054794,120]
[383850637,1757142661833,-400.0,0.00054794,120]
[383850638,1757142661843,-210.47147096,0.00054794,7]
[383850639,1757142661855,-403.62178983,0.00054794,120]
[383850640,1757142661865,-689.29,0.00054794,120]
[383850641,1757142661875,-299.69649872,0.00054794,120]
[383850642,1757142661884,-400.0,0.00054794,120]
[383850643,1757142661894,-400.0,0.00054794,120]
[383850644,1757142661903,-257.52717466,0.00054794,120]
[383850645,1757142661913,-403.49587259,0.00054794,120]
[383850646,1757142661923,-472.58,0.00054794,120]
[383850647,1757142661932,-403.64941042,0.00054794,120]
[383850648,1757142661941,-516.86631282,0.00054794,120]
[383850649,1757142661950,-405.72348869,0.00054794,120]
[383850650,1757142661960,-400.0,0.00054794,120]
[383850651,1757142661970,-400.0,0.00054794,120]
[383850652,1757142661979,-400.0,0.00054794,120]
[383850653,1757142661989,-400.0,0.00054794,120]
[383850654,1757142661999,-400.0,0.00054794,120]
[383850655,1757142662008,-500.0,0.00054794,120]
[383850656,1757142662017,-511.07830417,0.00054794,120]
[383850657,1757142662029,-400.0,0.00054794,120]
[383850658,1757142662041,-400.0,0.00054794,120]
[383850659,1757142662055,-242.40121461,0.00054794,120]
[383850660,1757142662065,-400.0,0.00054794,120]
[383850661,1757142662074,-400.0,0.00054794,120]
[383850662,1757142662084,-400.0,0.00054794,120]
[383850663,1757142662094,-226.16276445,0.00054794,120]
[383850664,1757142662104,-402.11570372,0.00054794,120]
[383850665,1757142662116,-400.0,0.00054794,120]
[383850666,1757142662126,-409.83962454,0.00054794,120]
[383850667,1757142662136,-447.81,0.00054794,120]
[383850668,1757142662145,-400.0,0.00054794,120]
[383850669,1757142662154,-403.87204233,0.00054794,120]
[383850670,1757142662164,-400.0,0.00054794,120]
[383850671,1757142662173,-400.0,0.00054794,120]
[383850672,1757142662183,-401.44096007,0.00054794,120]
[383850673,1757142662193,-400.0,0.00054794,120]
[383850674,1757142662202,-509.12251161,0.00054794,120]
[383850675,1757142662211,-403.24224863,0.00054794,120]
[383850676,1757142662220,-400.0,0.00054794,120]
[383850677,1757142662230,-400.0,0.00054794,120]
[383850678,1757142662240,-402.43353185,0.00054794,120]
[383850679,1757142662249,-400.0,0.00054794,120]
[383850680,1757142662259,-402.94169406,0.00054794,16]
[383850681,1757142662269,-402.66105217,0.00054794,120]
[383850682,1757142662279,-475.82,0.00054794,120]
[383850683,1757142662289,-408.71839522,0.00054794,7]
[383850684,1757142662299,-255.47854039,0.00054794,120]
[383850685,1757142662308,-400.0,0.00054794,120]
[383850686,1757142662318,-400.0,0.00054794,120]
[383850687,1757142662327,-400.0,0.00054794,120]
[383850688,1757142662337,-403.26088383,0.00054794,120]
[383850689,1757142662347,-400.0,0.00054794,120]
[383850690,1757142662356,-400.0,0.00054794,120]
[383850691,1757142662366,-400.0,0.00054794,120]
[383850692,1757142662375,-400.0,0.00054794,120]
[383850693,1757142662385,-407.30413362,0.00054794,120]
[383850694,1757142662394,-400.0,0.00054794,120]
[383850695,1757142662404,-405.77136777,0.00054794,120]
[383850696,1757142662413,-400.0,0.00054794,120]
[383850697,1757142662423,-400.0,0.00054794,120]
[383850698,1757142662432,-400.0,0.00054794,120]
[383850699,1757142662442,-400.0,0.00054794,120]
[383850700,1757142662452,-400.0,0.00054794,120]
[383850701,1757142662461,-400.0,0.00054794,120]
[383850702,1757142662470,-400.0,0.00054794,2]
[383850703,1757142662482,-403.00165426,0.00054794,120]
[383850704,1757142662491,-400.0,0.00054794,120]
[383850705,1757142662500,-400.0,0.00054794,120]
[383850706,1757142662511,-400.0,0.00054794,120]
[383850707,1757142662520,-405.91120307,0.00054794,120]
[383850708,1757142662529,-722.22,0.00054794,120]
[383850709,1757142662538,-402.58380321,0.00054794,120]
[383850710,1757142662547,-400.0,0.00054794,120]
[383850711,1757142662556,-403.02187662,0.00054794,120]
[383850712,1757142662566,-400.0,0.00054794,120]
[383850713,1757142662575,-400.0,0.00054794,120]
[383850714,1757142662584,-400.0,0.00054794,120]
[383850715,1757142662594,-406.85551023,0.00054794,120]
[383850716,1757142662603,-400.0,0.00054794,120]
[383850717,1757142662613,-400.0,0.00054794,120]
[383850718,1757142662622,-402.34150443,0.00054794,120]
[383850719,1757142662631,-485.8,0.00054794,120]
[383850720,1757142662641,-477.96,0.00054794,120]
[383850721,1757142662650,-400.0,0.00054794,120]
[383850722,1757142662660,-400.0,0.00054794,120]
[383850723,1757142662670,-400.0,0.00054794,120]
[383850724,1757142662680,-400.0,0.00054794,120]
[383850725,1757142662690,-400.0,0.00054794,120]
[383850726,1757142662700,-400.0,0.00054794,120]
[383850727,1757142662711,-402.91092111,0.00054794,120]
[383850728,1757142662721,-400.0,0.00054794,120]
[383850729,1757142662732,-400.0,0.00054794,120]
[383850730,1757142662743,-400.0,0.00054794,120]
[383850731,1757142662754,-400.0,0.00054794,120]
[383850732,1757142662764,-698.29,0.00054794,120]
[383850733,1757142662774,-400.0,0.00054794,120]
[383850734,1757142662783,-400.0,0.00054794,120]
[383850735,1757142662795,-400.0,0.00054794,120]
[383850736,1757142662807,-400.0,0.00054794,120]
[383850737,1757142662818,-400.0,0.00054794,120]
[383850738,1757142662829,-4000.0,0.00054795,30]
[383850739,1757142662839,-6059.6282146,0.00054962,2]
[383850740,1757142662849,-155.82135637,0.00054999,120]
[383850741,1757142662859,-500000.0,0.00055,120]
[383850742,1757142662868,-20000.0,0.00055,120]
[383850743,1757142662878,-153.059391,0.00055,14]
[383850744,1757142662891,-154.313951,0.00055,120]
[383850745,1757142662901,-151.0,0.00055,120]
[383850746,1757142662912,-151.0,0.00055,120]
[383850747,1757142662923,-333.219907,0.00055,120]
[383850748,1757142662933,-333.219907,0.00055,120]
[383850749,1757142662943,-226.324791,0.00055,120]
[383850750,1757142662953,-333.219907,0.00055,120]
[383850751,1757142662963,-226.324791,0.00055,120]
[383850752,1757142662972,-333.219907,0.00055,120]
[383850753,1757142662982,-226.324791,0.00055,120]
[383850754,1757142662991,-226.324791,0.00055,120]
[383850755,1757142663001,-245.195949,0.00055,120]
[383850756,1757142663011,-240.981312,0.00055,15]
[383850757,1757142663021,-240.981312,0.00055,15]
[383850758,1757142663030,-2151.042427,0.00055,120]
[383850759,1757142663040,-2151.042427,0.00055,120]
[383850760,1757142663050,-240.981312,0.00055,15]
[383850761,1757142663060,-2070.792925,0.00055,120]
[383850762,1757142663069,-240.981312,0.00055,15]
[383850763,1757142663079,-2151.042427,0.00055,120]
[383850764,1757142663088,-2070.792925,0.00055,120]
[383850765,1757142663098,-2151.042427,0.00055,120]
[383850766,1757142663107,-2070.792925,0.00055,120]
[383850767,1757142663117,-2070.792925,0.00055,120]
[383850768,1757142663127,-271.541194,0.00055,120]
[383850769,1757142663137,-271.541194,0.00055,120]
[383850770,1757142663146,-271.541194,0.00055,120]
[383850771,1757142663156,-271.541194,0.00055,120]
[383850772,1757142663166,-151.0,0.00055,120]
[383850773,1757142663176,-156.527146,0.00055,120]
[383850774,1757142663185,-254.533976,0.00055,120]
[383850775,1757142663195,-254.533976,0.00055,120]
[383850776,1757142663205,-254.533976,0.00055,120]
[383850777,1757142663214,-254.533976,0.00055,120]
[383850778,1757142663223,-715.719907,0.00055,120]
[383850779,1757142663233,-715.719907,0.00055,120]
[383850780,1757142663242,-715.719907,0.00055,120]
[383850781,1757142663252,-199.750129,0.00055,120]
[383850782,1757142663261,-151.0,0.00055,120]
[383850783,1757142663271,-151.0,0.00055,120]
[383850784,1757142663280,-199.750129,0.00055,120]
[383850785,1757142663290,-715.719907,0.00055,120]
[383850786,1757142663299,-164.616127,0.00055,120]
[383850787,1757142663309,-199.750129,0.00055,120]
[383850788,1757142663318,-199.750129,0.00055,120]
[383850789,1757142663327,-160.219138,0.00055,120]
[383850790,1757142663337,-160.219138,0.00055,120]
[383850791,1757142663347,-151.0,0.00055,60]
[383850792,1757142663356,-160.219138,0.00055,120]
[383850793,1757142663366,-151.0,0.00055,60]
[383850794,1757142663376,-151.0,0.00055,120]
[383850795,1757142663385,-160.219138,0.00055,120]
[383850796,1757142663395,-151.0,0.00055,60]
[383850797,1757142663404,-151.0,0.00055,120]
[383850798,1757142663414,-151.0,0.00055,120]
[383850799,1757142663424,-161.536083,0.00055,120]
[383850800,1757142663434,-153.997555,0.00055,120]
[383850801,1757142663444,-151.0,0.00055,30]
[383850802,1757142663453,-151.0,0.00055,120]
[383850803,1757142663463,-167.654445,0.00055,120]
[383850804,1757142663482,-151.0,0.00055,120]
[383850805,1757142663492,-151.0,0.00055,30]
[383850806,1757142663502,-151.524158,0.00055,120]
[383850807,1757142663512,-151.0,0.00055,120]
[383850808,1757142663522,-151.0,0.00055,120]
[383850809,1757142663532,-212.205431,0.00055,30]
[383850810,1757142663542,-151.0,0.00055,120]
[383850811,1757142663552,-151.0,0.00055,120]
[383850812,1757142663561,-151.0,0.00055,120]
[383850813,1757142663571,-1500.0,0.00055127,120]
[383850814,1757142663581,-183.15,0.00055151,120]
[383850815,1757142663590,-500.0,0.00055409,120]
[383850816,1757142663599,-898.77,0.000555,60]
[383850817,1757142663609,-951.381,0.0005555,106]
[383850818,1757142663619,-500.0,0.00055594,120]
[383850819,1757142663629,-150.0,0.00055797,120]
[383850820,1757142663638,-530.0,0.0005588,120]
[383850821,1757142663647,-1973.05,0.000559,30]
[383850822,1757142663657,-20000.0,0.00056,120]
[383850823,1757142663668,-2072.79,0.00056,30]
[383850824,1757142663677,-948.75196567,0.00056,120]
[383850825,1757142663687,-288.54921028,0.00056164,120]
[383850826,1757142663696,-500.0,0.00056176,120]
[383850827,1757142663706,-161.26,0.000562,60]
[383850828,1757142663717,-995.5,0.00056305,120]
[383850829,1757142663726,-335.57,0.00056355,120]
[383850830,1757142663735,-180.83468267,0.00056402,28]
[383850831,1757142663745,-500.0,0.00056454,120]
[383850832,1757142663755,-500.0,0.00056852,120]
[383850833,1757142663764,-360.0,0.00056864,120]
[383850834,1757142663774,-500.0,0.00056986,110]
[383850835,1757142663783,-20000.0,0.00057,120]
[383850836,1757142663793,-898.77,0.00057,60]
[383850837,1757142663803,-151.0,0.000571,120]
[383850838,1757142663812,-500.0,0.00057271,120]
[383850839,1757142663821,-53326.4821695,0.0005744,2]
[383850840,1757142663831,-894.2154262,0.000575,120]
[383850841,1757142663841,-744.0,0.000575,30]
[383850842,1757142663851,-1973.05,0.000575,30]
[383850843,1757142663860,-305.49541783,0.00057534,120]
[383850844,1757142663870,-400.0,0.00057534,120]
[383850845,1757142663879,-408.46172109,0.00057534,120]
[383850846,1757142663889,-405.2920364,0.00057534,120]
[383850847,1757142663898,-400.0,0.00057534,120]
[383850848,1757142663907,-401.74579225,0.00057534,120]
[383850849,1757142663917,-400.0,0.00057534,120]
[383850850,1757142663927,-400.0,0.00057534,120]
[383850851,1757142663937,-400.0,0.00057534,120]
[383850852,1757142663946,-400.0,0.00057534,120]
[383850853,1757142663955,-382.21605451,0.00057534,120]
[383850854,1757142663965,-400.0,0.00057534,2]
[383850855,1757142663974,-400.0,0.00057534,120]
[383850856,1757142663984,-400.0,0.00057534,120]
[383850857,1757142663993,-404.94386401,0.00057534,7]
[383850858,1757142664003,-400.0,0.00057534,120]
[383850859,1757142664012,-400.0,0.00057534,120]
[383850860,1757142664021,-400.0,0.00057534,120]
[383850861,1757142664031,-400.0,0.00057534,120]
[383850862,1757142664041,-400.0,0.00057534,120]
[383850863,1757142664050,-473.68619784,0.00057534,120]
[383850864,1757142664059,-400.0,0.00057534,120]
[383850865,1757142664069,-400.0,0.00057534,120]
[383850866,1757142664078,-403.85352991,0.00057534,120]
[383850867,1757142664088,-402.83512403,0.00057534,120]
[383850868,1757142664097,-400.0,0.00057534,120]
[383850869,1757142664106,-400.0,0.00057534,120]
[383850870,1757142664116,-400.0,0.00057534,120]
[383850871,1757142664125,-413.82121563,0.00057534,120]
[383850872,1757142664134,-400.0,0.00057534,120]
[383850873,1757142664143,-400.0,0.00057534,120]
[383850874,1757142664152,-400.0,0.00057534,120]
[383850875,1757142664161,-533.20865622,0.00057534,120]
[383850876,1757142664171,-400.0,0.00057534,120]
[383850877,1757142664180,-405.88616848,0.00057534,120]
[383850878,1757142664189,-408.40210605,0.00057534,120]
[383850879,1757142664199,-400.0,0.00057534,120]
[383850880,1757142664209,-403.03182146,0.00057534,120]
[383850881,1757142664218,-400.0,0.00057534,120]
[383850882,1757142664227,-400.0,0.00057534,120]
[383850883,1757142664240,-407.33006625,0.00057534,120]
[383850884,1757142664250,-400.0,0.00057534,120]
[383850885,1757142664399,-400.0,0.00057534,120]
[383850886,1757142664409,-405.04193396,0.00057534,120]
[383850887,1757142664419,-401.70343396,0.00057534,120]
[383850888,1757142664428,-400.0,0.00057534,120]
[383850889,1757142664437,-402.75563921,0.00057534,120]
[383850890,1757142664447,-409.13836992,0.00057534,120]
[383850891,1757142664457,-411.22191275,0.00057534,120]
[383850892,1757142664466,-412.12160407,0.00057534,120]
[383850893,1757142664480,-402.33691886,0.00057534,120]
[383850894,1757142664489,-400.0,0.00057534,120]
[383850895,1757142664500,-400.0,0.00057534,120]
[383850896,1757142664509,-405.20113819,0.00057534,120]
[383850897,1757142664520,-404.18885488,0.00057534,120]
[383850898,1757142664530,-400.0,0.00057534,120]
[383850899,1757142664539,-400.0,0.00057534,120]
[383850900,1757142664549,-406.00359981,0.00057534,120]
[383850901,1757142664561,-400.0,0.00057534,120]
[383850902,1757142664570,-400.87111914,0.00057534,120]
[383850903,1757142664580,-408.39357909,0.00057534,120]
[383850904,1757142664589,-412.12694251,0.00057534,120]
[383850905,1757142664598,-400.0,0.00057534,120]
[383850906,1757142664607,-400.0,0.00057534,120]
[383850907,1757142664617,-400.0,0.00057534,120]
[383850908,1757142664626,-162.53636128,0.00057534,120]
[383850909,1757142664637,-400.0,0.00057534,120]
[383850910,1757142664647,-401.83989339,0.00057534,120]
[383850911,1757142664656,-408.81989536,0.00057534,120]
[383850912,1757142664666,-402.92630169,0.00057534,120]
[383850913,1757142664676,-409.94681269,0.00057534,120]
[383850914,1757142664685,-400.0,0.00057534,90]
[383850915,1757142664695,-400.0,0.00057534,120]
[383850916,1757142664704,-400.0,0.00057534,120]
[383850917,1757142664713,-400.0,0.00057534,120]
[383850918,1757142664723,-403.7241048,0.00057534,120]
[383850919,1757142664732,-400.0,0.00057534,120]
[383850920,1757142664741,-403.10225537,0.00057534,120]
[383850921,1757142664751,-400.0,0.00057534,120]
[383850922,1757142664760,-400.0,0.00057534,120]
[383850923,1757142664770,-400.0,0.00057534,120]
[383850924,1757142664781,-402.13491214,0.00057534,120]
[383850925,1757142664791,-400.0,0.00057534,120]
[383850926,1757142664801,-405.87516237,0.00057534,120]
[383850927,1757142664810,-400.0,0.00057534,120]
[383850928,1757142664819,-400.0,0.00057534,120]
[383850929,1757142664828,-402.87922631,0.00057534,120]
[383850930,1757142664838,-400.0,0.00057534,120]
[383850931,1757142664847,-405.32744829,0.00057534,120]
[383850932,1757142664858,-400.0,0.00057534,120]
[383850933,1757142664867,-400.0,0.00057534,120]
[383850934,1757142664878,-405.567265,0.00057534,120]
[383850935,1757142664889,-407.66763212,0.00057534,120]
[383850936,1757142664900,-400.0,0.00057534,120]
[383850937,1757142664911,-400.0,0.00057534,120]
[383850938,1757142664922,-403.32911038,0.00057534,120]
[383850939,1757142664932,-400.90474124,0.00057534,120]
[383850940,1757142664942,-402.87260733,0.00057534,120]
[383850941,1757142664951,-406.67916877,0.00057534,120]
[383850942,1757142664961,-401.55704535,0.00057534,120]
[383850943,1757142664972,-406.81484012,0.00057534,120]
[383850944,1757142664983,-400.0,0.00057534,120]
[383850945,1757142664993,-403.99802227,0.00057534,120]
[383850946,1757142665002,-400.0,0.00057534,120]
[383850947,1757142665011,-400.0,0.00057534,120]
[383850948,1757142665021,-400.0,0.00057534,120]
[383850949,1757142665030,-404.57008539,0.00057534,120]
[383850950,1757142665040,-400.0,0.00057534,120]
[383850951,1757142665052,-400.0,0.00057534,120]
[383850952,1757142665062,-400.0,0.00057534,120]
[383850953,1757142665071,-407.67648533,0.00057534,120]
[383850954,1757142665082,-400.0,0.00057534,120]
[383850955,1757142665093,-400.0,0.00057534,120]
[383850956,1757142665104,-400.0,0.00057534,120]
[383850957,1757142665113,-400.0,0.00057534,120]
[383850958,1757142665124,-389.85679722,0.00057534,120]
[383850959,1757142665135,-400.0,0.00057534,120]
[383850960,1757142665145,-404.65779463,0.00057534,120]
[383850961,1757142665154,-410.14492303,0.00057534,120]
[383850962,1757142665164,-403.04406145,0.00057534,120]
[383850963,1757142665174,-409.68243779,0.00057534,12]
[383850964,1757142665183,-402.10975448,0.00057534,120]
[383850965,1757142665193,-400.0,0.00057534,120]